bitfinex-derivatives/quotes_BTCF0:USTF0_20250811
["timestamp","ask_amount","ask_price","bid_price","bid_amount"]
[1754934992998,0.79468338,119600.0,119590.0,0.67849195]
[1754934993501,0.79461927,119600.0,119590.0,0.67849195]
[1754934994295,0.79469337,119600.0,119590.0,0.67849195]
[1754934995403,7e-08,119600.0,119590.0,0.67849195]
[1754934995598,0.77526,119610.0,119600.0,0.0836103]
[1754934995798,0.77526,119610.0,119600.0,0.9166846]
[1754934996002,0.77526,119610.0,119600.0,1.0144146]
[1754934996605,0.77526,119610.0,119600.0,0.63023745]
[1754934996805,0.77626,119610.0,119600.0,0.63023745]
[1754934997809,0.77726,119610.0,119600.0,0.63023745]
[1754934998006,0.81884,119610.0,119600.0,0.63023745]
[1754935009114,0.81884,119610.0,119600.0,0.2460603]
[1754935009308,0.81884,119610.0,119600.0,0.63023745]
[1754935012016,0.9024425,119610.0,119600.0,0.63023745]
[1754935012515,0.81884,119610.0,119600.0,0.63023745]
[1754935014017,0.81884,119610.0,119600.0,1.0144146]
[1754935015106,0.79583,119610.0,119600.0,1.0144146]
[1754935015306,0.0021,119610.0,119600.0,1.0144146]
[1754935015510,0.7769,119610.0,119600.0,1.0144146]
[1754935016722,0.02428,119610.0,119600.0,1.0144146]
[1754935016922,0.79908,119610.0,119600.0,1.0144146]
[1754935017430,0.8185,119610.0,119600.0,1.0144146]
[1754935019828,0.7769,119610.0,119600.0,1.0144146]
[1754935020835,0.77682,119610.0,119600.0,1.0144146]
[1754935021236,0.81838,119610.0,119600.0,1.0144146]
[1754935021432,0.0437,119610.0,119600.0,1.0144146]
[1754935021736,0.81838,119610.0,119600.0,1.0144146]
[1754935022235,0.81838,119610.0,119600.0,0.2460603]
[1754935022536,0.9019822,119610.0,119600.0,0.56810745]
[1754935022742,0.9019822,119610.0,119600.0,0.1192103]
[1754935022933,1.30470097,119610.0,119600.0,0.0836103]
[1754935023228,0.92052382,119610.0,119600.0,0.0836103]
[1754935023936,0.92052382,119610.0,119600.0,0.1172003]
[1754935024538,0.92052382,119610.0,119600.0,0.0836103]
[1754935025635,1.30470097,119610.0,119600.0,0.0836103]
[1754935026136,0.92052382,119610.0,119600.0,0.0836103]
[1754935029935,0.92052382,119610.0,119600.0,0.1172003]
[1754935044052,0.92028382,119610.0,119600.0,0.62533745]
[1754935044550,0.92028382,119610.0,119600.0,0.59838745]
[1754935046344,0.92028382,119610.0,119600.0,0.1172003]
[1754935046946,0.92028382,119610.0,119600.0,0.1410703]
[1754935047252,0.92028382,119610.0,119600.0,0.2411603]
[1754935047453,0.92028382,119610.0,119600.0,0.62533745]
[1754935047953,0.92028382,119610.0,119600.0,0.2411603]
[1754935048153,0.92028382,119610.0,119600.0,0.62533745]
[1754935048453,0.92028382,119610.0,119600.0,0.59838745]
[1754935048754,0.92028382,119610.0,119600.0,0.62533745]
[1754935049650,0.92173921,119610.0,119600.0,0.62533745]
[1754935051748,0.92173921,119610.0,119600.0,0.2411603]
[1754935051957,0.92173921,119610.0,119600.0,0.62533745]
[1754935052355,0.92173921,119610.0,119600.0,0.56608745]
[1754935052555,0.92173921,119610.0,119600.0,0.59838745]
[1754935052856,0.92173921,119610.0,119600.0,0.62533745]
[1754935054456,0.92173921,119610.0,119600.0,0.2411603]
[1754935054958,0.92173921,119610.0,119600.0,0.1172003]
[1754935055853,0.92173921,119610.0,119600.0,0.1733703]
[1754935056557,0.92173921,119610.0,119600.0,0.1410703]
[1754935058353,0.92173921,119610.0,119600.0,0.1733703]
[1754935060663,0.92173921,119610.0,119600.0,0.1410703]
[1754935061559,0.92173921,119610.0,119600.0,0.1172003]
[1754935061965,0.92202667,119610.0,119600.0,0.1172003]
[1754935062667,0.92202667,119610.0,119600.0,0.2142103]
[1754935062862,0.92202667,119610.0,119600.0,0.2411603]
[1754935065561,0.92191247,119610.0,119600.0,0.2411603]
[1754935067171,0.92191247,119610.0,119600.0,0.15755]
[1754935067857,0.0836092,119600.0,119590.0,0.1307348]
[1754935068063,0.50691635,119600.0,119590.0,0.3728005]
[1754935068365,0.1227392,119600.0,119590.0,0.3728005]
[1754935069872,0.1227392,119600.0,119590.0,0.2891848]
[1754935070971,0.1227392,119600.0,119590.0,0.2055717]
[1754935071171,0.50691635,119600.0,119590.0,0.03414]
[1754935071368,0.67414835,119600.0,119590.0,0.0001]
[1754935071978,0.67414835,119600.0,119590.0,0.03414]
[1754935072375,0.67414835,119600.0,119590.0,0.0001]
[1754935072674,0.0836302,119570.0,119560.0,0.3685821]
[1754935072871,0.8766702,119570.0,119560.0,0.3753158]
[1754935073276,0.8968402,119570.0,119560.0,0.3753158]
[1754935073478,0.8968402,119570.0,119560.0,0.4093558]
[1754935074078,0.8968402,119570.0,119560.0,0.79553295]
[1754935074277,0.8969402,119570.0,119560.0,0.79863295]
[1754935074882,0.8767702,119570.0,119560.0,0.79863295]
[1754935076880,0.942392,119570.0,119560.0,0.79863295]
[1754935077081,0.923432,119570.0,119560.0,0.79863295]
[1754935077880,0.8398018,119570.0,119560.0,0.79863295]
[1754935078079,0.923432,119570.0,119560.0,0.79863295]
[1754935078475,0.962262,119570.0,119560.0,0.79863295]
[1754935080786,0.962262,119570.0,119560.0,0.4144558]
[1754935080989,0.97068456,119570.0,119560.0,0.79863295]
[1754935081688,0.97068456,119570.0,119560.0,0.4144558]
[1754935081983,0.97068456,119570.0,119560.0,0.77119295]
[1754935082183,0.97068456,119570.0,119560.0,0.2684695]
[1754935082692,0.97068456,119570.0,119560.0,0.3033795]
[1754935082892,0.97068456,119570.0,119560.0,0.3308195]
[1754935085889,0.97068456,119570.0,119560.0,0.2684695]
[1754935086088,0.97068456,119570.0,119560.0,0.2064095]
[1754935086683,0.97068456,119570.0,119560.0,0.3033795]
[1754935086984,0.97068456,119570.0,119560.0,0.3308195]
[1754935087391,0.98908053,119570.0,119560.0,0.3308195]
[1754935088078,0.98908053,119570.0,119560.0,0.2286895]
[1754935088285,1.37325768,119570.0,119560.0,0.03914]
[1754935089779,1.37325768,119570.0,119560.0,0.0051]
[1754935089984,1.37325768,119570.0,119560.0,0.03714]
[1754935090180,1.37325768,119570.0,119560.0,0.03814]
[1754935090388,1.37325768,119570.0,119560.0,0.0041]
[1754935090793,1.37317868,119570.0,119560.0,0.0031]
[1754935091183,1.37317868,119570.0,119560.0,0.03714]
[1754935092892,0.98900153,119570.0,119560.0,0.03714]
[1754935093191,1.37317868,119570.0,119560.0,0.03714]
[1754935094290,1.37309868,119570.0,119560.0,0.09548]
[1754935094487,1.51189868,119570.0,119560.0,0.09548]
[1754935095093,1.51189868,119570.0,119560.0,0.06057]
[1754935095691,1.51189868,119570.0,119560.0,0.03714]
[1754935097291,1.51189868,119570.0,119560.0,0.0031]
[1754935097493,0.0836371,119560.0,119550.0,0.01]
[1754935097688,0.50146425,119560.0,119550.0,0.0442]
[1754935098087,0.1172871,119560.0,119550.0,0.0442]
[1754935098290,0.1172871,119560.0,119550.0,0.1698]
[1754935098489,0.1172871,119560.0,119550.0,0.1088]
[1754935098689,0.1173871,119560.0,119550.0,0.1089]
[1754935098889,0.1173871,119560.0,119550.0,0.1119]
[1754935099194,0.1173871,119560.0,119550.0,0.1456]
[1754935099395,0.1173871,119560.0,119550.0,0.1476]
[1754935099586,0.50156425,119560.0,119550.0,0.1476]
[1754935099787,0.51987399,119560.0,119550.0,0.1476]
[1754935100490,0.51987399,119560.0,119550.0,0.1749]
[1754935100997,0.90961684,119560.0,119550.0,0.1749]
[1754935102089,1.29379399,119560.0,119550.0,0.1749]
[1754935102297,1.29379399,119560.0,119550.0,0.2585441]
[1754935102494,1.29379399,119560.0,119550.0,0.0151]
[1754935102696,1.29379399,119560.0,119550.0,0.10629]
[1754935103094,1.29379399,119560.0,119550.0,0.1749]
[1754935103291,1.29376659,119560.0,119550.0,0.1749]
[1754935103796,1.29376659,119560.0,119550.0,0.1476]
[1754935104290,1.29376659,119560.0,119550.0,0.0493]
[1754935104596,1.43256659,119560.0,119550.0,0.0493]
[1754935104998,1.98393174,119560.0,119550.0,1e-07]
[1754935105900,1.59975459,119560.0,119550.0,1e-07]
[1754935106105,0.0836441,119550.0,119540.0,0.0342]
[1754935106295,0.50147125,119550.0,119540.0,0.0343]
[1754935107894,0.50142501,119550.0,119540.0,0.0343]
[1754935108505,0.50642501,119550.0,119540.0,0.0343]
[1754935108901,0.50942501,119550.0,119540.0,0.0343]
[1754935110207,0.89908786,119550.0,119540.0,0.08088]
[1754935110399,0.89908786,119550.0,119540.0,0.1599]
[1754935110703,0.89908786,119550.0,119540.0,0.2435511]
[1754935110903,0.88298786,119550.0,119540.0,0.62772825]
[1754935111414,0.89908786,119550.0,119540.0,0.62772825]
[1754935111615,0.89908786,119550.0,119540.0,0.2435511]
[1754935111805,0.89908786,119550.0,119540.0,0.62772825]
[1754935113120,0.78184,119550.0,119540.0,0.62772825]
[1754935113812,0.008,119550.0,119540.0,0.62772825]
[1754935114113,0.7818,119550.0,119540.0,0.84503225]
[1754935114809,0.7818,119550.0,119540.0,0.67772825]
[1754935115604,0.7818,119550.0,119540.0,0.62844445]
[1754935116214,0.7818,119550.0,119540.0,0.68593445]
[1754935120218,0.8654442,119550.0,119540.0,0.67772825]
[1754935120914,0.7818,119550.0,119540.0,0.67772825]
[1754935121912,0.7818,119550.0,119540.0,0.68630877]
[1754935122418,0.008,119550.0,119540.0,0.68630877]
[1754935123616,0.008,119550.0,119540.0,0.63630877]
[1754935123814,0.79198234,119560.0,119550.0,0.0836442]
[1754935124020,0.80808234,119560.0,119550.0,0.62762135]
[1754935124221,0.82563234,119560.0,119550.0,0.62762135]
[1754935125213,0.82663234,119560.0,119550.0,0.62962135]
[1754935126018,0.82818234,119560.0,119550.0,0.62962135]
[1754935126519,0.7747,119560.0,119550.0,0.62962135]
[1754935127421,0.7908,119560.0,119550.0,0.62962135]
[1754935127619,0.80835,119560.0,119550.0,0.62962135]
[1754935130816,0.8099,119560.0,119550.0,0.62962135]
[1754935131217,0.8099,119560.0,119550.0,0.2454442]
[1754935131424,0.8099,119560.0,119550.0,0.62962135]
[1754935132016,0.82833468,119560.0,119550.0,0.62962135]
[1754935132410,0.80974,119560.0,119550.0,0.62962135]
[1754935133925,0.0656218,119570.0,119550.0,1.4320144]
[1754935134128,0.77433,119580.0,119560.0,1.0868112]
[1754935134327,0.77433,119580.0,119570.0,0.46780735]
[1754935134630,0.77433,119580.0,119570.0,0.50214735]
[1754935135327,0.84818041,119580.0,119570.0,0.50214735]
[1754935135522,0.840053,119580.0,119570.0,0.50224735]
[1754935135923,0.840053,119580.0,119570.0,0.50524735]
[1754935136920,0.840053,119580.0,119570.0,0.51024735]
[1754935138033,0.9236762,119580.0,119570.0,0.51024735]
[1754935138926,0.9236762,119580.0,119570.0,0.1260702]
[1754935139234,0.9236762,119580.0,119570.0,0.51024735]
[1754935139828,0.9236762,119580.0,119570.0,0.04244]
[1754935139829,1.30785335,119580.0,119570.0,0.04244]
[1754935144344,1.30785335,119580.0,119570.0,0.1260701]
[1754935144534,0.9227062,119580.0,119570.0,0.0917301]
[1754935145248,1.30688335,119580.0,119570.0,0.0081]
[1754935146050,1.30688335,119580.0,119570.0,0.0917302]
[1754935146741,0.9227062,119580.0,119570.0,0.0917302]
[1754935146946,0.9227062,119580.0,119570.0,0.47590735]
[1754935147343,0.9227062,119580.0,119570.0,0.0917302]
[1754935147942,0.94120762,119580.0,119570.0,0.0917302]
[1754935149246,1.32538477,119580.0,119570.0,0.0917302]
[1754935150639,0.94120762,119580.0,119570.0,0.0917302]
[1754935151648,0.94152123,119580.0,119570.0,0.0917302]
[1754935151848,0.94152123,119580.0,119570.0,0.0081]
[1754935152048,1.32569838,119580.0,119570.0,0.0081]
[1754935152551,0.94152123,119580.0,119570.0,0.0081]
[1754935152749,1.32569838,119580.0,119570.0,0.0081]
[1754935152946,1.32569838,119580.0,119570.0,0.0917301]
[1754935153246,1.32569838,119580.0,119570.0,0.0081]
[1754935154748,1.32569838,119580.0,119570.0,0.0917301]
[1754935155352,1.32569838,119580.0,119570.0,0.0081]
[1754935156454,1.32569838,119580.0,119570.0,0.0917301]
[1754935156846,1.32569838,119580.0,119570.0,0.0081]
[1754935158646,1.32569838,119580.0,119570.0,0.04124]
[1754935161042,0.94152123,119580.0,119570.0,0.04124]
[1754935161242,1.32569838,119580.0,119570.0,0.1248701]
[1754935162453,1.32569838,119580.0,119570.0,0.04124]
[1754935162953,1.32569838,119580.0,119570.0,0.1248701]
[1754935164354,1.32569838,119580.0,119570.0,0.04124]
[1754935165550,1.32569838,119580.0,119570.0,0.11763]
[1754935165954,1.32521838,119580.0,119570.0,0.11763]
[1754935166657,1.32521838,119580.0,119570.0,0.2012601]
[1754935166868,1.32521838,119580.0,119570.0,0.2444101]
[1754935167156,0.94104123,119580.0,119570.0,0.2444101]
[1754935169159,0.94104123,119580.0,119570.0,0.16078]
[1754935169560,1.32521838,119580.0,119570.0,0.12731]
[1754935170058,0.94104123,119580.0,119570.0,0.12731]
[1754935170260,1.32521838,119580.0,119570.0,0.12731]
[1754935170456,1.32521838,119580.0,119570.0,0.05892]
[1754935170864,1.32521838,119580.0,119570.0,0.04124]
[1754935171552,0.94104123,119580.0,119570.0,0.04124]
[1754935171853,1.32521838,119580.0,119570.0,0.04124]
[1754935174563,1.32521838,119580.0,119570.0,0.2109401]
[1754935174763,0.94104123,119580.0,119570.0,0.2444101]
[1754935175064,0.9220262,119580.0,119570.0,0.2444101]
[1754935175564,0.94033724,119580.0,119570.0,0.2444101]
[1754935176364,0.94059104,119580.0,119570.0,0.2444101]
[1754935177762,0.94059104,119580.0,119570.0,0.16078]
[1754935177965,0.94059104,119580.0,119570.0,0.2444101]
[1754935179270,0.94059104,119580.0,119570.0,0.16078]
[1754935179562,1.32476819,119580.0,119570.0,0.12731]
[1754935179766,1.32461667,119580.0,119570.0,0.12731]
[1754935180165,1.32461667,119580.0,119570.0,0.10207]
[1754935180467,1.32461667,119580.0,119570.0,0.08018]
[1754935181361,1.32461667,119580.0,119570.0,0.05892]
[1754935182569,1.32461667,119580.0,119570.0,0.04124]
[1754935182970,0.94043952,119580.0,119570.0,0.04124]
[1754935183171,1.32461667,119580.0,119570.0,0.04124]
[1754935190274,1.30620335,119580.0,119570.0,0.04124]
[1754935192969,0.9220262,119580.0,119570.0,0.04124]
[1754935193165,1.30620335,119580.0,119570.0,0.04124]
[1754935195374,0.9220262,119580.0,119570.0,0.04124]
[1754935195576,1.30620335,119580.0,119570.0,0.04124]
[1754935200273,0.9220262,119580.0,119570.0,0.0081]
[1754935200579,0.837963,119580.0,119570.0,0.62631895]
[1754935200774,0.9215878,119580.0,119570.0,0.62631895]
[1754935201172,0.837963,119580.0,119570.0,0.62631895]
[1754935201377,0.9215878,119580.0,119570.0,0.62631895]
[1754935202077,0.1493478,119580.0,119570.0,0.62631895]
[1754935202280,0.9215478,119580.0,119570.0,0.2421418]
[1754935202470,0.9215478,119580.0,119570.0,0.62631895]
[1754935202775,0.9215478,119580.0,119570.0,0.2421418]
[1754935203777,0.1493478,119580.0,119570.0,0.2421418]
[1754935204175,0.9215078,119580.0,119570.0,0.2421418]
[1754935204476,0.9215078,119580.0,119570.0,0.62631895]
[1754935204980,0.1493478,119580.0,119570.0,0.62631895]
[1754935205171,0.9214678,119580.0,119570.0,0.62631895]
[1754935206575,0.9214678,119580.0,119570.0,0.2421418]
[1754935206780,0.9214678,119580.0,119570.0,0.1845018]
[1754935206968,1.30564495,119580.0,119570.0,0.2421418]
[1754935207171,1.30564495,119580.0,119570.0,0.2103918]
[1754935207372,1.30564495,119580.0,119570.0,0.1845018]
[1754935207573,1.30564495,119580.0,119530.0,0.19483679]
[1754935207574,0.0836512,119540.0,119530.0,0.19483679]
[1754935207784,1.23986835,119540.0,119530.0,0.11345052]
[1754935207975,0.0836582,119530.0,119520.0,0.01]
[1754935208175,0.46783535,119530.0,119520.0,0.01]
[1754935208978,1.5836652,119520.0,119510.0,0.0322]
[1754935209169,2.73988235,119520.0,119510.0,0.0001]
[1754935209376,2.73988235,119520.0,119510.0,0.0323]
[1754935209780,2.74819523,119520.0,119510.0,0.0001]
[1754935210677,2.74919523,119520.0,119510.0,0.0001]
[1754935211468,2.75219523,119520.0,119510.0,0.0001]
[1754935212080,2.75219523,119520.0,119510.0,0.0323]
[1754935212280,2.81936387,119520.0,119510.0,0.0323]
[1754935213877,2.04732387,119520.0,119510.0,0.0323]
[1754935214087,2.81952387,119520.0,119510.0,0.15051]
[1754935214480,2.81952387,119520.0,119510.0,0.2341822]
[1754935216190,2.81948387,119520.0,119510.0,0.2341822]
[1754935217391,2.43530672,119520.0,119510.0,0.15051]
[1754935217583,2.81948387,119520.0,119510.0,0.15051]
[1754935217788,2.81948387,119520.0,119510.0,0.2341822]
[1754935219590,2.04732387,119520.0,119510.0,0.2341822]
[1754935219790,1.66314672,119520.0,119510.0,0.61835935]
[1754935219992,2.43538672,119520.0,119510.0,0.2341822]
[1754935220885,2.81956387,119520.0,119510.0,0.2341822]
[1754935221192,2.81956387,119520.0,119510.0,0.0323]
[1754935221687,2.81956387,119520.0,119510.0,0.1159722]
[1754935221887,2.81956387,119520.0,119510.0,0.1913622]
[1754935222192,2.83783886,119520.0,119510.0,0.2369022]
[1754935223194,2.83783886,119520.0,119510.0,0.0323]
[1754935224093,2.83783886,119520.0,119510.0,0.1159722]
[1754935226597,2.83783886,119520.0,119510.0,0.0323]
[1754935227094,2.83783886,119520.0,119510.0,0.0001]
[1754935227293,2.83783886,119520.0,119510.0,0.03417]
[1754935230006,2.83783886,119520.0,119510.0,0.0001]
[1754935232006,2.83783886,119520.0,119510.0,0.03417]
[1754935235113,2.45362171,119520.0,119510.0,0.1804922]
[1754935235314,2.45362171,119520.0,119510.0,0.2387722]
[1754935235513,2.83779886,119520.0,119510.0,0.2387722]
[1754935235905,2.45362171,119520.0,119510.0,0.2387722]
[1754935236107,2.83779886,119520.0,119510.0,0.2387722]
[1754935236608,2.45362171,119520.0,119510.0,0.1551]
[1754935236814,2.83779886,119520.0,119510.0,0.2387721]
[1754935237609,2.45362171,119520.0,119510.0,0.2387721]
[1754935237914,2.83779886,119520.0,119510.0,0.1551]
[1754935238515,2.83779886,119520.0,119510.0,0.2387721]
[1754935238714,2.83779886,119520.0,119510.0,0.1551]
[1754935239409,2.83779886,119520.0,119510.0,0.2387721]
[1754935239605,2.83779886,119520.0,119510.0,0.0837721]
[1754935239810,2.83779886,119520.0,119510.0,0.1349521]
[1754935240010,2.83779886,119520.0,119510.0,0.2387721]
[1754935240208,2.45362171,119520.0,119510.0,0.2387721]
[1754935240409,2.83779886,119520.0,119510.0,0.1551]
[1754935241512,2.45362171,119520.0,119510.0,0.1551]
[1754935241713,2.83779886,119520.0,119510.0,0.1551]
[1754935243613,2.45362171,119520.0,119510.0,0.1551]
[1754935243812,2.83779886,119520.0,119510.0,0.2387721]
[1754935244015,2.83779886,119520.0,119510.0,0.1551]
[1754935244221,2.81952387,119520.0,119510.0,0.1551]
[1754935244515,2.81952387,119520.0,119510.0,0.2387721]
[1754935245021,2.04732387,119520.0,119510.0,0.2387721]
[1754935245321,2.82216387,119520.0,119510.0,0.2387721]
[1754935245515,0.07116864,119520.0,119510.0,0.62294925]
[1754935245720,0.92967384,119520.0,119510.0,0.62294925]
[1754935247025,0.92967384,119520.0,119510.0,0.2387721]
[1754935247217,0.92967384,119520.0,119510.0,0.62294925]
[1754935247621,0.92967384,119520.0,119510.0,0.2387721]
[1754935252730,1.31385099,119520.0,119510.0,0.0001]
[1754935252927,1.31530746,119520.0,119510.0,0.03279]
[1754935254931,1.31530746,119520.0,119510.0,0.0001]
[1754935257333,0.93113031,119520.0,119510.0,0.0001]
[1754935257534,1.31530746,119520.0,119510.0,0.0001]
[1754935257730,0.93113031,119520.0,119510.0,0.03279]
[1754935257927,1.31530746,119520.0,119510.0,0.03279]
[1754935258123,0.93113031,119520.0,119510.0,0.03279]
[1754935258327,1.31530746,119520.0,119510.0,0.03279]
[1754935261337,0.93113031,119520.0,119510.0,0.03279]
[1754935261543,1.69948461,119520.0,119510.0,0.03279]
[1754935261744,1.31530746,119520.0,119510.0,0.07488]
[1754935262036,1.31530746,119520.0,119510.0,0.10896]
[1754935263432,0.93113031,119520.0,119510.0,0.10896]
[1754935263835,1.31530746,119520.0,119510.0,0.10896]
[1754935264029,0.93113031,119520.0,119510.0,0.10896]
[1754935264234,1.31530746,119520.0,119510.0,0.10896]
[1754935266340,0.15629031,119520.0,119510.0,0.10896]
[1754935266539,1.33574746,119520.0,119510.0,0.10896]
[1754935267138,1.33429099,119520.0,119510.0,0.10896]
[1754935267536,1.33574757,119520.0,119510.0,0.10896]
[1754935267746,0.95157042,119520.0,119510.0,0.10896]
[1754935268043,1.33574757,119520.0,119510.0,0.10896]
[1754935268940,1.33574757,119520.0,119510.0,0.03279]
[1754935269843,1.33574757,119520.0,119510.0,0.0001]
[1754935270843,0.95157042,119520.0,119510.0,0.0001]
[1754935271043,1.33574757,119520.0,119510.0,0.0001]
[1754935271441,0.95157042,119520.0,119510.0,0.0001]
[1754935271640,1.33574757,119520.0,119510.0,0.0001]
[1754935273440,1.47454757,119520.0,119510.0,0.0001]
[1754935275556,1.33574757,119520.0,119510.0,0.0001]
[1754935276352,1.33574757,119520.0,119510.0,0.05867]
[1754935277348,0.95157042,119520.0,119510.0,0.05867]
[1754935277553,1.33574757,119520.0,119510.0,0.05867]
[1754935278762,1.33574757,119520.0,119510.0,0.09002]
[1754935281360,1.35423949,119520.0,119510.0,0.09002]
[1754935282863,0.97006234,119520.0,119510.0,0.09002]
[1754935283059,1.35423949,119520.0,119510.0,0.09002]
[1754935284963,1.35434655,119520.0,119510.0,0.09002]
[1754935287667,1.35434655,119520.0,119510.0,0.09002]
[1754935291366,1.35134655,119520.0,119510.0,0.09002]
[1754935291567,1.35434655,119520.0,119510.0,0.09002]
[1754935291768,1.36310655,119520.0,119510.0,0.09002]
[1754935291964,1.36210655,119520.0,119510.0,0.09002]
[1754935292164,1.36610655,119520.0,119510.0,0.09002]
[1754935292761,1.36310655,119520.0,119510.0,0.09002]
[1754935293066,1.36510655,119520.0,119510.0,0.09002]
[1754935293463,0.9809294,119520.0,119510.0,0.15695]
[1754935293663,1.36510655,119520.0,119510.0,0.15695]
[1754935294770,0.9809294,119520.0,119510.0,0.15695]
[1754935295071,1.36610655,119520.0,119510.0,0.15695]
[1754935295765,1.36578593,119520.0,119510.0,0.15695]
[1754935297573,0.98160878,119520.0,119510.0,0.15695]
[1754935297774,1.36578593,119520.0,119510.0,0.15695]
[1754935299175,1.36612458,119520.0,119510.0,0.15695]
[1754935299577,1.36612458,119520.0,119510.0,0.19843]
[1754935299777,0.98194743,119520.0,119510.0,0.25121]
[1754935299973,0.89828223,119520.0,119510.0,0.3560521]
[1754935300278,0.09424223,119520.0,119510.0,0.78932078]
[1754935300467,0.88202522,119520.0,119510.0,0.78932078]
[1754935300671,0.07562522,119520.0,119510.0,0.78932078]
[1754935300874,0.88048864,119520.0,119510.0,0.78932078]
[1754935301072,1.31375732,119520.0,119510.0,0.3560521]
[1754935301374,1.31075732,119520.0,119510.0,0.78932078]
[1754935301577,1.30875732,119520.0,119510.0,0.78932078]
[1754935301778,0.87748864,119520.0,119510.0,0.78932078]
[1754935302382,0.87448864,119520.0,119510.0,0.74113851]
[1754935302576,0.87548864,119520.0,119510.0,0.74113851]
[1754935303086,0.87544864,119520.0,119510.0,0.74113851]
[1754935304686,0.95911374,119520.0,119510.0,0.74113851]
[1754935307475,0.87544864,119520.0,119510.0,0.74113851]
[1754935308873,0.87544864,119520.0,119510.0,0.3560521]
[1754935309073,0.87544864,119520.0,119510.0,0.74113851]
[1754935310881,0.06916864,119520.0,119510.0,0.74113851]
[1754935311082,0.80412,119520.0,119510.0,0.99215021]
[1754935311287,0.2509226,119560.0,119550.0,0.0836441]
[1754935311578,0.2509226,119560.0,119550.0,0.2322041]
[1754935311579,2.9598262,119560.0,119550.0,0.2322041]
[1754935311783,2.96963707,119560.0,119550.0,0.2322041]
[1754935312784,2.88599397,119560.0,119550.0,0.2322041]
[1754935313084,2.88609397,119560.0,119550.0,0.2323041]
[1754935313285,2.88909397,119560.0,119550.0,0.2323041]
[1754935313484,2.50400756,119560.0,119550.0,0.2323041]
[1754935313685,2.88909397,119560.0,119550.0,0.2323041]
[1754935313888,2.72381447,119560.0,119550.0,0.2323041]
[1754935314280,2.80745187,119560.0,119550.0,0.2323041]
[1754935314485,2.80745187,119560.0,119550.0,0.1141044]
[1754935315581,2.42236546,119560.0,119550.0,0.1726544]
[1754935315982,2.80745187,119560.0,119550.0,0.1726544]
[1754935316285,2.80745187,119560.0,119550.0,0.2100844]
[1754935316482,2.80745187,119560.0,119550.0,0.2908544]
[1754935317185,2.80745187,119560.0,119550.0,0.1726544]
[1754935317490,2.80745187,119560.0,119550.0,0.08901]
[1754935318287,3.19253828,119560.0,119550.0,0.05865]
[1754935318586,0.0836584,119530.0,119520.0,0.03036]
[1754935318788,1.29125311,119530.0,119520.0,0.03036]
[1754935318988,2.79125311,119530.0,119520.0,0.03036]
[1754935319288,0.0836654,119520.0,119510.0,0.09729]
[1754935319486,0.46875181,119520.0,119510.0,0.09729]
[1754935319882,1.96875181,119520.0,119510.0,0.09729]
[1754935320087,1.96885181,119520.0,119510.0,0.09739]
[1754935320676,2.0353311,119520.0,119510.0,0.2992624]
[1754935320882,2.45388469,119520.0,119510.0,0.2992624]
[1754935321081,2.36981929,119520.0,119510.0,0.68434881]
[1754935321386,0.87009929,119520.0,119510.0,0.68534881]
[1754935321780,0.06657929,119520.0,119510.0,0.68534881]
[1754935321982,0.06657929,119520.0,119510.0,0.85469281]
[1754935322185,0.85484358,119520.0,119510.0,0.85459281]
[1754935322385,0.80356,119520.0,119510.0,0.85459281]
[1754935322982,0.8872254,119520.0,119510.0,0.85459281]
[1754935323186,0.8872254,119520.0,119510.0,0.4695064]
[1754935323388,0.8873254,119520.0,119510.0,0.4696064]
[1754935323585,0.8873254,119520.0,119510.0,0.3022624]
[1754935324886,0.95356368,119520.0,119510.0,0.3022624]
[1754935325794,0.86989828,119520.0,119510.0,0.3022624]
[1754935326183,0.95356368,119520.0,119510.0,0.3022624]
[1754935326688,0.95356368,119520.0,119510.0,0.68734881]
[1754935326884,0.95356368,119520.0,119510.0,0.3022624]
[1754935329291,0.86989828,119520.0,119510.0,0.3022624]
[1754935329985,0.06633828,119520.0,119510.0,0.3022624]
[1754935330188,0.87077828,119520.0,119510.0,0.68734881]
[1754935331589,0.06633828,119520.0,119510.0,0.68734881]
[1754935331798,0.87029828,119520.0,119510.0,0.68734881]
[1754935332886,0.87029828,119520.0,119510.0,0.3022624]
[1754935333091,0.87029828,119520.0,119510.0,0.68734881]
[1754935333892,0.95396368,119520.0,119510.0,0.68734881]
[1754935334094,0.87029828,119520.0,119510.0,0.68734881]
[1754935334696,0.95396368,119520.0,119510.0,0.68734881]
[1754935334993,0.95396368,119520.0,119510.0,0.3022624]
[1754935335595,0.87029828,119520.0,119510.0,0.3022624]
[1754935336194,0.87029828,119520.0,119510.0,0.68734881]
[1754935336689,0.06633828,119520.0,119510.0,0.68734881]
[1754935338102,0.04282258,119520.0,119510.0,0.68724881]
[1754935338297,0.80348,119530.0,119510.0,1.82541301]
[1754935338487,0.80348,119530.0,119520.0,0.56038181]
[1754935338693,0.80348,119530.0,119520.0,0.2366354]
[1754935338894,0.80348,119530.0,119520.0,0.62172181]
[1754935339095,0.80348,119530.0,119520.0,0.2366354]
[1754935339293,0.80358,119530.0,119520.0,0.62182181]
[1754935339498,0.8872384,119530.0,119520.0,0.62182181]
[1754935339801,0.80358,119530.0,119520.0,0.62182181]
[1754935340196,0.80358,119530.0,119520.0,0.62282181]
[1754935341201,0.80358,119530.0,119520.0,0.68975181]
[1754935342495,0.80358,119530.0,119520.0,0.3046654]
[1754935342703,0.80358,119530.0,119520.0,0.68975181]
[1754935343800,0.80358,119530.0,119520.0,0.3046654]
[1754935343998,0.80358,119530.0,119520.0,0.68975181]
[1754935346106,0.80358,119530.0,119520.0,0.3046654]
[1754935346504,0.8872384,119530.0,119520.0,0.68975181]
[1754935346709,0.8872384,119530.0,119520.0,0.3046654]
[1754935347709,1.27232481,119530.0,119520.0,0.1838254]
[1754935347903,1.27232481,119530.0,119520.0,0.2011054]
[1754935348099,0.80358,119530.0,119520.0,0.68975181]
[1754935348298,0.0001,119530.0,119520.0,0.68975181]
[1754935348504,0.80554,119530.0,119520.0,0.68975181]
[1754935349209,0.80554,119530.0,119520.0,0.3046654]
[1754935349416,0.80554,119530.0,119520.0,0.68975181]
[1754935350510,0.8891988,119530.0,119520.0,0.68975181]
[1754935351311,0.80554,119530.0,119520.0,0.68975181]
[1754935351811,0.8891988,119530.0,119520.0,0.68975181]
[1754935352199,0.80554,119530.0,119520.0,0.68975181]
[1754935352906,0.0001,119530.0,119520.0,0.68975181]
[1754935353301,0.0001,119530.0,119520.0,1.07483822]
[1754935353605,0.01865177,119550.0,119540.0,0.0836518]
[1754935353815,0.804,119550.0,119540.0,0.62170821]
[1754935355104,0.805,119550.0,119540.0,0.62170821]
[1754935355310,0.8071,119550.0,119540.0,0.62180821]
[1754935356000,0.0031,119550.0,119540.0,0.62180821]